bitfinex/quotes_SOLUSD_20250118
["timestamp","ask_amount","ask_price","bid_price","bid_amount"]
[1737187212989,13.28485945,232.43,232.35,150.58485945]
[1737187213291,13.28485945,232.43,232.35,137.3]
[1737187213590,13.28485945,232.43,232.35,150.58485945]
[1737187214479,13.28485945,232.41,232.33,154.88905945]
[1737187215100,13.28485945,232.41,232.34,13.28485945]
[1737187215406,4.2746,232.57,232.43,157.3]
[1737187215699,13.28485945,232.55,232.47,13.28485945]
[1737187215905,13.28485945,232.53,232.47,137.3]
[1737187216101,4.2998,232.57,232.47,150.58485945]
[1737187216102,13.28485945,232.54,232.47,150.58485945]
[1737187216278,13.28485945,232.53,232.47,137.3]
[1737187216708,0.80641146,232.56,232.47,137.3]
[1737187217008,13.28485945,232.5,232.42,13.28485945]
[1737187217194,4.2998,232.57,232.44,13.28485945]
[1737187217401,13.28485945,232.55,232.46,13.28485945]
[1737187217905,13.28485945,232.55,232.46,154.88655945]
[1737187218204,4.3001,232.55,232.46,137.3]
[1737187218377,13.28485945,232.53,232.46,137.3]
[1737187218699,13.28485945,232.53,232.46,122.3]
[1737187219106,17.58545945,232.53,232.46,122.3]
[1737187219332,13.28485945,232.51,232.47,0.03]
[1737187219604,13.28485945,232.48,232.47,0.03]
[1737187220111,13.28485945,232.5,232.47,0.03]
[1737187221207,13.28485945,232.52,232.47,0.03]
[1737187221495,13.28485945,232.56,232.49,13.28485945]
[1737187221682,13.28485945,232.56,232.47,0.03]
[1737187221884,13.28485945,232.56,232.47,13.31485945]
[1737187222380,13.28485945,232.54,232.47,13.31485945]
[1737187223595,13.28485945,232.52,232.47,0.03]
[1737187224094,13.28485945,232.5,232.47,0.03]
[1737187224495,13.28485945,232.49,232.47,0.03]
[1737187225695,4.3014,232.48,232.47,0.03]
[1737187225910,0.80665472,232.61,232.47,0.03]
[1737187226205,13.28485945,232.53,232.47,0.03]
[1737187227000,17.58535945,232.53,232.47,0.03]
[1737187227692,13.28485945,232.51,232.47,0.03]
[1737187228086,13.28485945,232.49,232.47,0.03]
[1737187228798,14.09155607,232.49,232.47,0.03]
[1737187228998,13.28485945,232.49,232.47,0.03]
[1737187229299,4.3014,232.48,232.47,0.03]
[1737187229993,10.7488,232.59,232.47,0.03]
[1737187230196,13.28485945,232.51,232.47,0.03]
[1737187230395,13.28485945,232.49,232.47,0.03]
[1737187230610,0.80680939,232.48,232.47,0.03]
[1737187231289,5.10820939,232.48,232.47,0.03]
[1737187233189,5.10820939,232.48,232.33,13.28485945]
[1737187233190,20.0,232.45,232.32,11.88635636]
[1737187233391,13.28485945,232.43,232.33,13.28485945]
[1737187233584,0.80698489,232.47,232.32,16.19065636]
[1737187233795,13.28485945,232.41,232.32,29.47551581]
[1737187234012,13.28485945,232.41,232.34,13.28485945]
[1737187234200,13.28485945,232.43,232.34,13.28485945]
[1737187234708,13.28485945,232.41,232.34,13.28485945]
[1737187235992,13.28485945,232.41,232.34,17.58875945]
[1737187238117,13.28485945,232.43,232.36,13.28485945]
[1737187239002,13.28485945,232.41,232.33,13.28485945]
[1737187239205,13.28485945,232.4,232.32,147.47121581]
[1737187240009,13.28485945,232.41,232.33,13.28485945]
[1737187240913,17.58755945,232.41,232.33,13.28485945]
[1737187241902,17.58755945,232.41,232.32,16.19065636]
[1737187242105,17.58755945,232.41,232.33,13.28485945]
[1737187242521,17.58755945,232.41,232.33,13.31485945]
[1737187243317,4.3027,232.41,232.34,13.28485945]
[1737187244316,13.28485945,232.38,232.33,0.03]
[1737187245223,13.28485945,232.39,232.33,0.03]
[1737187245408,13.28485945,232.38,232.33,0.03]
[1737187246518,13.28485945,232.37,232.33,0.03]
[1737187246821,13.28485945,232.38,232.33,0.03]
[1737187247118,13.28485945,232.37,232.33,0.03]
[1737187247421,17.58885945,232.34,232.33,0.03]
[1737187250221,21.64925945,232.34,232.33,0.03]
[1737187250400,22.45656492,232.34,232.33,0.03]
[1737187253314,4.3034,232.37,232.33,0.03]
[1737187253513,13.28485945,232.35,232.33,0.03]
[1737187253723,13.28485945,232.34,232.33,0.03]
[1737187254021,14.09200337,232.34,232.23,0.03]
[1737187254205,13.28485945,232.3,232.23,0.03]
[1737187254406,13.28485945,232.32,232.24,13.28485945]
[1737187256731,13.28485945,232.3,232.23,13.31485945]
[1737187257021,13.28485945,232.3,232.23,0.03]
[1737187257708,13.28485945,232.28,232.23,0.03]
[1737187259316,13.28485945,232.3,232.23,13.31485945]
[1737187260008,13.28485945,232.32,232.23,13.31485945]
[1737187260204,13.28485945,232.34,232.27,13.28485945]
[1737187260404,13.28485945,232.37,232.29,13.28485945]
[1737187260621,13.28485945,232.39,232.31,13.28485945]
[1737187261023,13.28485945,232.39,232.31,17.58925945]
[1737187261815,13.28485945,232.37,232.3,4.3047]
[1737187262011,13.28485945,232.37,232.29,17.58975945]
[1737187262213,13.28485945,232.35,232.27,25.89075945]
[1737187262527,0.80707756,232.37,232.25,17.59045945]
[1737187262528,13.28485945,232.33,232.25,17.59045945]
[1737187262746,11.56347336,232.43,232.29,13.28485945]
[1737187262946,13.28485945,232.39,232.31,13.28485945]
[1737187263129,4.3025,232.42,232.31,13.28485945]
[1737187263440,13.28485945,232.34,232.27,13.28485945]
[1737187263640,13.28485945,232.34,232.24,4.1146]
[1737187263641,13.28485945,232.28,232.23,0.03]
[1737187263846,13.28485945,232.26,232.23,0.03]
[1737187265115,17.59045945,232.26,232.23,0.03]
[1737187265822,13.28485945,232.24,232.23,0.03]
[1737187266031,13.28485945,232.26,232.23,0.03]
[1737187266914,13.28485945,232.24,232.23,0.03]
[1737187267213,17.59065945,232.24,232.23,0.03]
[1737187267614,17.59065945,232.24,232.08,13.28485945]
[1737187267615,32.37405945,232.24,232.08,13.28485945]
[1737187267848,13.28485945,232.16,232.08,13.28485945]
[1737187268927,17.59225945,232.16,232.08,13.28485945]
[1737187269233,13.28485945,232.1,232.02,13.28485945]
[1737187269432,13.28485945,232.1,231.95,4.3111]
[1737187269741,20.0,232.07,231.94,13.28485945]
[1737187269921,4.3514,232.11,231.98,13.28485945]
[1737187269922,13.28485945,232.08,231.98,13.28485945]
[1737187270321,13.28485945,232.06,231.91,15.0919]
[1737187270637,13.28485945,232.08,231.99,13.28485945]
[1737187270941,5.11711806,232.07,231.99,13.28485945]
[1737187271530,13.28485945,232.04,231.97,13.28485945]
[1737187271842,0.80832552,232.03,231.95,13.28485945]
[1737187272048,13.28485945,231.98,231.88,4.3125]
[1737187272348,13.28485945,231.98,231.94,13.28485945]
[1737187272349,0.07773365,231.96,231.94,13.28485945]
[1737187273361,4.38883365,231.96,231.88,0.33026933]
[1737187273550,18.48206273,231.96,231.85,13.28485945]
[1737187273853,4.38883365,231.96,231.88,13.28485945]
[1737187274247,0.80854655,231.95,231.88,13.28485945]
[1737187274430,0.80854655,231.95,231.86,13.28485945]
[1737187274757,18.48236159,231.96,231.86,13.28485945]
[1737187275547,18.48236159,231.96,231.86,17.59775945]
[1737187275845,18.48236159,231.96,231.87,13.28485945]
[1737187276240,5.19750214,231.96,231.87,13.28485945]
[1737187276445,18.48236159,231.96,231.87,13.28485945]
[1737187277452,0.88640214,231.96,231.79,4.66]
[1737187277647,5.19750214,231.96,231.87,13.28485945]
[1737187278062,18.48236159,231.96,231.87,13.28485945]
[1737187278561,5.19750214,231.96,231.87,13.28485945]
[1737187278940,18.48236159,231.96,231.87,13.28485945]
[1737187279374,18.48236159,231.96,231.79,4.66]
[1737187279375,18.48236159,231.96,231.86,0.03]
[1737187279569,0.88640214,231.96,231.87,13.28485945]
[1737187279756,5.19760214,231.96,231.87,13.28485945]
[1737187280241,18.48246159,231.96,231.87,13.28485945]
[1737187281545,0.07773365,231.96,231.89,13.28485945]
[1737187281980,4.38893365,231.96,231.87,13.28485945]
[1737187282270,0.80857045,231.95,231.86,0.03]
[1737187282474,18.48243103,231.96,231.86,0.03]
[1737187282960,13.28485945,231.94,231.86,0.03]
[1737187283654,13.28485945,231.94,231.86,4.3429]
[1737187284040,13.28485945,231.92,231.86,0.03]
[1737187284246,14.09361474,231.92,231.86,0.03]
[1737187284454,13.28485945,231.92,231.86,0.03]
[1737187285347,5.12003468,231.94,231.86,0.03]
[1737187285567,18.40489413,231.94,231.86,0.03]
[1737187286158,17.59625945,231.94,231.86,0.03]
[1737187286973,13.28485945,231.94,231.86,0.03]
[1737187287656,17.59625945,231.94,231.86,0.03]
[1737187288452,13.28485945,231.94,231.86,13.31485945]
[1737187288759,17.59625945,231.94,231.86,17.62775945]
[1737187288959,13.28485945,231.94,231.86,17.62775945]
[1737187289178,17.59625945,231.94,231.86,13.31485945]
[1737187289349,17.59625945,231.94,231.86,17.62775945]
[1737187289549,17.59625945,231.94,231.86,13.31485945]
[1737187289874,17.59625945,231.94,231.86,0.03]
[1737187290621,0.07773365,231.96,231.9,13.28485945]
[1737187290761,0.07773365,231.96,231.92,13.28485945]
[1737187291158,0.07773365,231.96,231.94,13.28485945]
[1737187292377,0.08052374,231.95,231.94,13.28485945]
[1737187292759,0.08052374,231.95,231.94,17.59625945]
[1737187293149,0.08052374,231.95,231.94,13.28485945]
[1737187293356,0.08052374,231.95,231.94,17.59625945]
[1737187293684,0.08052374,231.95,231.94,13.28485945]
[1737187294184,0.08052374,231.95,231.92,13.28485945]
[1737187294476,0.08052374,231.95,231.9,13.28485945]
[1737187295183,4.39172374,231.95,231.9,13.28485945]
[1737187295361,0.08052374,231.95,231.9,17.59695945]
[1737187295677,0.08052374,231.95,231.89,4.3123]
[1737187295874,0.08052374,231.95,231.9,13.28485945]
[1737187297078,0.08052374,231.95,231.91,4.312]
[1737187297568,0.08052374,231.95,231.92,13.28485945]
[1737187299387,0.08052374,231.95,231.94,13.28485945]
[1737187300456,2.374e-05,231.95,231.94,13.28485945]
[1737187301086,2.374e-05,231.95,231.94,17.59625945]
[1737187301973,2.374e-05,231.95,231.94,4.3114]
[1737187302178,2.374e-05,231.95,231.94,17.59625945]
[1737187303766,2.374e-05,231.95,231.94,17.92608827]
[1737187304686,2.374e-05,231.95,231.94,17.59625945]
[1737187305975,2.374e-05,231.95,231.92,4.6714679]
[1737187306184,2.374e-05,231.95,231.94,13.28485945]
[1737187307490,2.374e-05,231.95,231.94,17.59625945]
[1737187308283,0.09426825,231.99,231.94,17.59625945]
[1737187308284,4.2663,232.16,231.97,24.291]
[1737187308491,21.85855945,232.16,232.07,13.28485945]
[1737187308875,13.28485945,232.14,232.05,13.28485945]
[1737187309592,13.28485945,232.14,232.04,4.66]
[1737187309593,13.28485945,232.12,232.04,4.66]
[1737187310789,13.28485945,232.1,232.04,4.66]
[1737187310987,13.28485945,232.1,232.01,13.28485945]
[1737187311287,0.80798986,232.14,231.99,13.28485945]
[1737187311288,13.28485945,232.08,231.99,13.28485945]
[1737187311898,4.309,232.07,231.99,13.28485945]
[1737187312283,0.0920353,232.0,231.97,13.28485945]
[1737187312892,0.0920353,232.0,231.97,17.59565945]
[1737187313100,0.0920353,232.0,231.97,4.3108]
[1737187313281,0.0920353,232.0,231.98,13.28485945]
[1737187315379,4.4024353,232.0,231.94,13.28485945]
[1737187317483,4.4024353,232.0,231.94,13.31485945]
[1737187317684,29.27142496,232.0,231.94,0.03]
[1737187317885,28.46309475,232.0,231.94,0.03]
[1737187319799,4.4024353,232.0,231.94,13.31485945]
[1737187320489,4.4024353,232.0,231.94,0.03]
[1737187321005,4.4024353,232.0,231.87,4.66]
[1737187321185,4.4024353,232.0,231.92,13.28485945]
[1737187322684,0.0920353,232.0,231.94,13.28485945]
[1737187322885,0.0920353,232.0,231.96,13.28485945]
[1737187323190,4.4024353,232.0,231.94,13.28485945]
[1737187323389,4.4023353,232.0,231.94,13.28485945]
[1737187323592,4.4023353,232.0,231.92,13.28485945]
[1737187323805,17.68719475,232.0,231.92,13.28485945]
[1737187324882,0.0920353,232.0,231.94,13.28485945]
[1737187325088,0.0920353,232.0,231.96,13.28485945]
[1737187325600,0.09215849,232.01,231.98,13.28485945]
[1737187325799,0.09215849,232.01,232.0,33.28485945]
[1737187326092,5.849e-05,232.01,232.0,33.28485945]
[1737187326299,8.194e-05,232.02,232.0,33.28485945]
[1737187327202,4.3079,232.13,232.0,33.28485945]
[1737187327203,13.28485945,232.18,232.0,33.28485945]
[1737187327404,13.28485945,232.18,232.11,13.28485945]
[1737187328205,17.46175945,232.22,232.13,13.28485945]
[1737187328389,13.28485945,232.24,232.15,13.28485945]
[1737187329009,13.28485945,232.26,232.17,13.28485945]
[1737187329393,4.2399,232.27,232.19,13.28485945]
[1737187329394,0.063,232.27,232.19,13.28485945]
[1737187330199,13.28485945,232.24,232.17,13.28485945]
[1737187330505,13.28485945,232.19,232.1,13.28485945]
[1737187330704,13.28485945,232.17,232.08,26.40975945]
[1737187331013,0.063,232.2,232.12,13.28485945]
[1737187331204,0.063,232.2,232.14,13.28485945]
[1737187331401,0.063,232.2,232.19,33.28485945]
[1737187332115,0.063,232.2,232.17,13.28485945]
[1737187332324,0.15739591,232.2,232.17,13.28485945]
[1737187332497,0.15739591,232.2,232.19,13.28485945]
[1737187334302,0.15739591,232.2,232.15,13.28485945]
[1737187334505,4.46409591,232.2,232.15,13.28485945]
[1737187334907,4.46409591,232.2,232.13,13.28485945]
[1737187335491,17.74895536,232.2,232.11,13.28485945]
[1737187335697,17.74895536,232.2,232.11,17.92485945]
[1737187335903,13.28485945,232.15,232.02,12.4578]
[1737187336102,4.3077,232.14,232.06,13.28485945]
[1737187337509,15.077,232.14,232.06,13.28485945]
[1737187339729,15.077,232.14,232.08,13.28485945]
[1737187340322,4.3077,232.14,232.1,13.28485945]
[1737187340535,15.0746,232.18,232.1,13.28485945]
[1737187340907,13.28485945,232.17,232.1,13.28485945]
[1737187341106,13.28485945,232.17,232.08,13.28485945]
[1737187341535,13.28485945,232.17,232.03,4.64]
[1737187341536,13.28485945,232.15,232.06,13.28485945]
[1737187342715,4.3077,232.14,232.06,13.31485945]
[1737187343815,4.3077,232.14,232.06,5.93485945]
[1737187344234,13.28485945,232.13,232.06,0.03]
[1737187344525,13.28485945,232.09,232.06,0.03]
[1737187344724,4.3088,232.08,232.06,0.03]
[1737187346531,4.2264,232.07,232.06,0.03]
[1737187346721,8.5354,232.07,232.06,0.03]
[1737187346909,21.82025945,232.07,232.06,0.03]
[1737187347110,8.5354,232.07,232.06,0.0001]
[1737187349614,21.82025945,232.07,232.06,0.0001]
[1737187351609,41.66137082,232.07,231.95,46.5]
[1737187351837,13.28485945,232.03,231.94,13.28485945]
[1737187352345,0.08757618,231.95,231.94,13.28485945]
[1737187352809,0.09118216,231.97,231.94,13.28485945]
[1737187353014,0.0930695,232.03,231.99,20.0]
[1737187353213,0.06081386,232.02,232.01,13.28485945]
[1737187354139,4.37071386,232.02,231.88,137.3]
[1737187354311,0.06081386,232.02,231.96,13.28485945]
[1737187354512,0.06081386,232.02,232.01,13.28485945]
[1737187356229,0.06081386,232.02,231.89,2.20350764]
[1737187356433,0.06081386,232.02,231.96,13.28485945]
[1737187356740,0.06081386,232.02,231.98,13.28485945]
[1737187357039,4.37081386,232.02,231.89,5.20768146]
[1737187357233,0.06081386,232.02,231.97,13.28485945]
[1737187359135,4.3155,232.01,231.86,139.46782768]
[1737187359326,4.3103,232.0,231.92,13.28485945]
[1737187360020,8.6256,232.01,231.94,13.28485945]
[1737187362620,8.6256,232.01,231.92,13.28485945]
[1737187363642,32.68575945,232.01,231.92,13.28485945]
[1737187364532,8.6256,232.01,231.94,13.28485945]
[1737187365826,8.6256,232.01,231.93,13.28485945]
[1737187366259,8.6256,232.01,231.94,0.03]
[1737187366443,21.91045945,232.01,231.94,0.03]
[1737187368928,8.6256,232.01,231.94,0.03]
[1737187371961,13.28485945,232.0,231.94,0.03]
[1737187372335,0.08560446,231.95,231.94,0.03]
[1737187373156,0.08560446,231.95,231.94,13.31485945]
[1737187373377,0.08601093,231.99,231.94,13.31485945]
[1737187373378,0.0783136,231.99,231.97,20.0]
[1737187373682,0.0799627,232.01,231.98,13.28485945]
[1737187377776,0.0799627,232.01,231.94,0.03]
[1737187378078,0.0799627,232.01,231.99,13.28485945]
[1737187378454,0.0799627,232.01,231.94,0.03]
[1737187378671,0.0799627,232.01,231.99,13.28485945]
[1737187380657,0.0799627,232.01,231.99,150.58485945]
[1737187381176,0.0799627,232.01,231.99,155.22485945]
[1737187382174,3.303e-05,232.0,231.99,155.22485945]
[1737187384579,3.303e-05,232.0,231.99,141.94]
[1737187384884,3.303e-05,232.0,231.99,155.22485945]
[1737187385086,4.0906,232.16,232.01,157.3]
[1737187385267,4.0906,232.16,232.09,20.0]
[1737187385581,4.0906,232.16,232.09,33.28485945]
[1737187386272,0.063,232.2,232.13,13.28485945]
[1737187387270,0.063,232.2,232.15,13.28485945]
[1737187388178,13.28485945,232.19,232.11,137.3]
[1737187388375,13.28485945,232.19,232.09,13.28485945]
[1737187388585,13.28485945,232.17,232.09,13.28485945]
[1737187388781,13.28485945,232.17,232.06,139.97237346]
[1737187388959,13.28485945,232.15,232.06,13.28485945]
[1737187389463,13.28485945,232.14,232.06,13.28485945]
[1737187390481,13.28485945,232.14,232.02,137.3]
[1737187390685,13.28485945,232.14,232.05,13.28485945]
[1737187391073,17.32885945,232.1,232.01,150.58485945]
[1737187391386,13.28485945,232.08,232.01,137.3]
[1737187391681,17.32885945,232.1,232.01,150.58485945]
[1737187391868,17.32885945,232.1,232.03,13.28485945]
[1737187392267,0.09089939,232.04,232.01,13.28485945]
[1737187393985,0.09089939,232.04,231.99,20.03]
[1737187394180,0.09089939,232.04,232.01,13.28485945]
[1737187394986,0.09089939,232.04,232.0,13.28485945]
[1737187396689,0.09089939,232.04,232.02,13.28485945]
[1737187397388,0.09089939,232.04,231.99,20.03]
[1737187397590,0.09089939,232.04,232.0,13.28485945]
[1737187398099,0.09089939,232.04,231.99,33.31485945]
[1737187398691,0.09089939,232.04,231.99,170.61485945]
[1737187399372,16.9148,232.03,231.99,0.03]
[1737187399577,16.9148,232.03,231.94,0.03]
[1737187399578,13.28485945,232.01,231.94,0.03]
[1737187399772,13.28485945,231.98,231.94,0.03]
[1737187401688,4.3109,231.97,231.94,0.03]
[1737187402990,13.28485945,231.98,231.94,0.03]
[1737187403806,17.59555945,231.98,231.94,0.03]
[1737187404382,13.28485945,231.96,231.94,0.03]
[1737187405084,4.1861,231.97,231.94,0.03]
[1737187405999,12.8708,232.03,231.94,137.33]
[1737187406297,0.09089939,232.04,231.99,150.58485945]
[1737187406596,0.09089939,232.04,232.01,13.28485945]
[1737187407101,0.09089939,232.04,231.99,137.3]
[1737187408307,13.28485945,232.03,231.95,17.90485945]
[1737187408614,13.28485945,232.03,231.95,4.62]
[1737187408817,13.28485945,232.01,231.95,4.62]
[1737187409001,13.28485945,232.01,231.94,0.03]
[1737187409303,4.1861,232.0,231.94,0.03]
[1737187409509,13.28485945,231.99,231.94,0.03]
[1737187409710,4.3107,231.98,231.94,0.03]
[1737187410111,7.49136996,231.98,231.94,0.03]
[1737187410690,3.18066996,231.98,231.94,0.03]
[1737187411114,7.49136996,231.98,231.94,0.03]
[1737187411304,3.18066996,231.98,231.94,0.03]
[1737187411496,3.18066996,231.97,231.94,0.03]
[1737187411813,17.68545884,232.04,231.94,137.33]
[1737187412019,13.37575884,232.04,231.96,13.28485945]
[1737187412324,0.08368028,231.97,231.94,137.33]
[1737187412507,0.08368028,231.97,231.96,13.28485945]
[1737187412996,0.04880014,232.02,231.98,20.0]
[1737187413202,4.1861,232.11,232.04,157.3]
[1737187413402,9.54632839,232.16,232.11,20.0]
[1737187413600,0.063,232.19,232.11,20.0]
[1737187414115,13.28485945,232.15,232.01,137.3]
[1737187414293,13.28485945,232.12,232.02,150.58485945]
[1737187414612,13.28485945,232.12,232.04,13.28485945]
[1737187414814,13.28485945,232.14,232.04,150.58485945]
[1737187415191,13.28485945,232.12,232.04,13.28485945]
[1737187415387,13.28485945,232.12,232.02,13.28485945]
[1737187416223,17.59295945,232.12,232.02,13.28485945]
[1737187416387,13.28485945,232.08,231.99,4.62]
[1737187416718,13.28485945,232.06,231.99,4.62]
[1737187417714,17.47095945,232.1,232.0,13.28485945]
[1737187417901,17.47095945,232.1,232.02,13.28485945]
[1737187418101,4.1861,232.1,232.02,13.28485945]
[1737187418306,21.77945945,232.1,232.0,13.28485945]
[1737187419426,21.77945945,232.1,231.99,4.62]
[1737187419619,21.77945945,232.1,231.99,17.90485945]
[1737187419916,13.28485945,232.08,231.99,17.90485945]
[1737187420130,0.063,232.12,232.03,13.28485945]
[1737187420332,0.063,232.12,232.05,150.58485945]
[1737187420524,0.063,232.12,232.07,13.28485945]
[1737187422326,0.063,232.2,232.11,150.58485945]
[1737187422624,0.063,232.2,232.14,13.28485945]
[1737187422921,0.063,232.2,232.11,141.92]
[1737187423098,0.063,232.2,232.14,13.28485945]
[1737187423503,0.063,232.2,232.16,13.28485945]
[1737187423924,0.063,232.2,232.16,150.58485945]
[1737187424419,0.063,232.2,232.18,13.28485945]
[1737187425232,0.063,232.2,232.18,150.58485945]
[1737187425602,0.063,232.2,232.18,163.8697189]
[1737187426025,0.063,232.2,232.18,175.9103189]
[1737187426224,0.063,232.31,232.21,157.3]
[1737187426509,0.063,232.31,232.3,150.58485945]
[1737187426720,0.063,232.36,232.3,155.20485945]
[1737187427029,0.063,232.36,232.35,150.58485945]
[1737187427324,0.063,232.36,232.35,158.61700048]
[1737187428306,0.063,232.48,232.38,157.3]
[1737187428517,1.0,232.51,232.47,21.31700048]
[1737187428711,1.0,232.51,232.5,21.31700048]
[1737187428906,1.0,232.51,232.49,21.31700048]
[1737187429228,21.31700048,232.5,232.4,158.61700048]
[1737187429426,21.31700048,232.47,232.39,21.31700048]
[1737187429616,1.0,232.51,232.45,158.61700048]
[1737187429821,1.0,232.51,232.38,141.92]
[1737187430022,1.0,232.51,232.47,158.61700048]
[1737187430212,1.0,232.51,232.49,158.61700048]
[1737187432432,0.08548739,232.5,232.49,158.61700048]
[1737187432743,0.08733062,232.54,232.52,157.3]
[1737187432920,0.08733062,232.54,232.53,25.93700048]
[1737187434051,21.31700048,232.67,232.56,157.3]
[1737187434231,21.31700048,232.67,232.6,21.31700048]
[1737187434424,21.31700048,232.69,232.6,21.31700048]
[1737187434631,21.31700048,232.65,232.56,157.3]
[1737187434819,21.31700048,232.63,232.56,157.3]
[1737187435123,21.38000048,232.71,232.62,137.3]
[1737187435340,0.063,232.71,232.62,137.3]
[1737187435533,0.063,232.71,232.65,158.61700048]
[1737187435736,0.063,232.71,232.68,158.61700048]
[1737187436040,0.063,232.71,232.68,141.92]
[1737187436615,0.063,232.71,232.68,163.23700048]
[1737187436839,0.063,232.71,232.7,157.3]
[1737187437226,0.063,232.71,232.68,4.62]
[1737187437947,0.063,232.71,232.69,157.3]
[1737187440024,0.063,232.71,232.69,137.3]
[1737187440244,0.063,232.77,232.72,20.0]
[1737187440537,0.063,232.85,232.76,158.55400048]
[1737187440737,0.063,232.85,232.83,20.0]
[1737187440948,0.063,232.92,232.84,157.237]
[1737187441157,0.063,232.92,232.87,21.31700048]
[1737187441339,0.063,232.92,232.86,21.31700048]
[1737187441648,0.063,232.92,232.88,21.31700048]
[1737187442455,0.063,232.92,232.84,139.53621309]
[1737187442456,4.2935,232.91,232.84,137.237]
[1737187442653,0.063,232.92,232.84,158.55400048]
[1737187442873,0.063,232.85,232.84,158.55400048]
[1737187443441,0.063,232.85,232.84,137.237]
[1737187443634,0.063,232.85,232.84,158.55400048]
[1737187444145,0.063,232.85,232.84,164.30336028]
[1737187444735,4.29,233.1,232.87,20.0]
[1737187444949,21.31700048,233.02,232.88,4.59127975]
[1737187445136,21.31700048,232.96,232.88,31.65764003]
[1737187445455,21.31700048,232.96,232.88,5.7493598]
[1737187445637,21.31700048,232.92,232.88,5.7493598]
[1737187445837,21.31700048,232.92,232.85,137.237]
[1737187446037,21.31700048,232.9,232.85,137.237]
[1737187446938,21.31700048,232.86,232.78,137.237]
[1737187447135,21.31700048,232.83,232.78,137.237]
[1737187447363,15.0253,232.94,232.82,20.0]
[1737187447571,21.31700048,232.89,232.82,20.0]
[1737187448047,21.31700048,232.93,232.85,21.31700048]
[1737187448356,21.31700048,232.93,232.88,20.0]
[1737187448565,25.61010048,232.93,232.88,20.0]
[1737187449367,25.61010048,232.93,232.85,158.55400048]
[1737187449567,21.31700048,232.93,232.85,137.237]
[1737187449749,21.31700048,232.93,232.86,21.31700048]
[1737187449946,21.31700048,232.93,232.86,158.55400048]
[1737187450459,25.61010048,232.93,232.86,158.55400048]
[1737187451270,4.2931,232.93,232.86,158.55400048]
[1737187451651,25.60980048,232.95,232.87,4.6]
[1737187451844,21.31700048,232.95,232.87,141.837]
[1737187452045,21.31700048,232.95,232.88,158.55400048]
[1737187452245,4.2929,232.94,232.88,158.55400048]
[1737187452758,4.2929,232.94,232.91,20.0]
[1737187453055,4.2928,232.95,232.88,158.55400048]
[1737187453372,21.31700048,232.91,232.88,137.237]
[1737187454248,25.61050048,232.91,232.88,137.237]
[1737187454649,4.293,232.94,232.88,137.237]
[1737187455057,4.2927,232.96,232.88,158.55400048]
[1737187455770,0.03,232.95,232.88,158.55400048]
[1737187455969,21.34700048,232.95,232.88,137.237]
[1737187456156,25.63980048,232.95,232.88,137.237]
[1737187456347,21.31700048,232.89,232.88,137.237]
[1737187456759,0.03,232.95,232.91,20.0]
[1737187456959,21.31700048,233.06,232.94,21.31700048]
[1737187457158,21.31700048,233.04,232.96,21.31700048]
[1737187457472,21.31700048,233.06,232.99,20.0]
[1737187457667,25.60770048,233.06,232.99,20.0]
[1737187458169,21.31700048,233.04,232.99,20.0]
[1737187458375,21.31700048,233.0,232.92,25.91700048]
[1737187458564,21.31700048,232.97,232.92,137.237]
[1737187458957,0.80488912,233.02,232.86,163.21700048]
[1737187458958,21.31700048,232.95,232.86,163.21700048]
[1737187459157,21.31700048,232.97,232.88,158.61700048]
[1737187459755,21.31700048,233.01,232.92,21.31700048]
[1737187460351,4.2918,233.0,232.92,21.31700048]
[1737187460546,21.31700048,233.01,232.92,21.31700048]
[1737187460755,25.44500048,233.03,232.94,21.31700048]
[1737187460949,0.03,233.09,233.03,20.0]
[1737187461167,4.3202,233.09,233.0,21.31700048]
[1737187461456,21.31700048,233.08,233.0,21.31700048]
[1737187461958,21.31700048,233.08,233.03,20.0]
[1737187462164,4.3202,233.09,233.03,20.0]
[1737187462372,4.3202,233.09,233.04,21.31700048]
[1737187462558,0.03,233.09,233.04,21.31700048]
[1737187462752,0.03,233.09,233.06,21.31700048]
[1737187463777,0.03,233.09,233.08,20.0]
[1737187464163,0.03,233.09,233.06,21.31700048]
[1737187464973,0.03,233.09,233.08,21.31700048]
[1737187471682,0.03,233.09,233.06,21.31700048]